bitfinex/quotes_SOLUSD_20250217
["timestamp","ask_amount","ask_price","bid_price","bid_amount"]
[1739819223113,50.12691817,176.41,176.36,50.12691817]
[1739819223299,20.0,176.38,176.34,0.063]
[1739819223502,50.12691817,176.36,176.34,0.063]
[1739819223723,50.12691817,176.35,176.34,0.063]
[1739819224107,63.5387667,176.35,176.34,0.063]
[1739819225299,13.41184853,176.34,176.33,0.063]
[1739819225612,33.41184853,176.3,176.29,0.063]
[1739819225822,84.5387667,176.3,176.29,0.063]
[1739819226824,20.0,176.26,176.18,50.12691817]
[1739819227008,50.12691817,176.22,176.17,50.12691817]
[1739819227216,50.12691817,176.24,176.18,50.12691817]
[1739819227612,2.7656,176.33,176.22,50.12691817]
[1739819227810,50.12691817,176.31,176.25,50.12691817]
[1739819228124,50.12691817,176.37,176.3,50.12691817]
[1739819228332,20.0,176.34,176.31,50.12691817]
[1739819228626,7.56632016,176.33,176.31,50.12691817]
[1739819228828,7.56632016,176.33,176.3,50.12691817]
[1739819229205,7.56632016,176.33,176.29,55.79921817]
[1739819229410,50.12691817,176.32,176.26,50.12691817]
[1739819229608,13.41184853,176.37,176.3,50.12691817]
[1739819229820,50.12691817,176.35,176.29,50.12691817]
[1739819230113,50.12691817,176.31,176.25,50.12691817]
[1739819230309,50.12691817,176.3,176.24,50.12691817]
[1739819230609,50.12691817,176.3,176.28,50.12691817]
[1739819230610,20.0,176.3,176.28,50.12691817]
[1739819230816,50.12691817,176.34,176.28,50.12691817]
[1739819231819,1.42018128,176.33,176.28,50.12691817]
[1739819232014,63.5387667,176.32,176.26,50.12691817]
[1739819232333,50.12691817,176.31,176.25,50.12691817]
[1739819232932,1.42018128,176.33,176.28,50.12691817]
[1739819233134,20.0,176.32,176.29,50.12691817]
[1739819233309,50.12691817,176.38,176.31,50.12691817]
[1739819233512,51.88891817,176.39,176.33,50.12691817]
[1739819233710,20.0,176.35,176.32,50.12691817]
[1739819233905,70.12691817,176.35,176.29,55.79931817]
[1739819234110,20.0,176.35,176.31,50.12691817]
[1739819234307,20.0,176.35,176.33,50.12691817]
[1739819234622,1.42005293,176.38,176.34,50.12691817]
[1739819234831,1.42005293,176.38,176.37,50.12691817]
[1739819235211,1.42005293,176.38,176.37,55.79671817]
[1739819235423,64.95881963,176.44,176.37,50.12691817]
[1739819235625,64.95881963,176.44,176.39,50.12691817]
[1739819235626,1.42005293,176.44,176.39,50.12691817]
[1739819235918,1.42005293,176.44,176.41,50.12691817]
[1739819236425,1.42005293,176.44,176.42,50.12691817]
[1739819236816,1.42005293,176.44,176.43,50.12691817]
[1739819237233,58.72939343,176.52,176.44,5.6676]
[1739819237433,50.12691817,176.48,176.42,50.12691817]
[1739819237622,50.12691817,176.47,176.41,50.18991817]
[1739819237932,50.12691817,176.46,176.41,0.063]
[1739819238139,50.12691817,176.46,176.41,50.18991817]
[1739819238440,50.12691817,176.47,176.41,50.18991817]
[1739819239134,20.0,176.48,176.44,50.12691817]
[1739819239326,0.03,176.52,176.47,50.12691817]
[1739819239735,20.0,176.5,176.47,50.12691817]
[1739819239947,20.0,176.5,176.42,5.6682]
[1739819239948,20.0,176.49,176.45,50.12691817]
[1739819240750,50.12691817,176.5,176.44,50.12691817]
[1739819240955,50.12691817,176.46,176.41,50.18991817]
[1739819241146,50.12691817,176.46,176.41,0.063]
[1739819241554,50.12691817,176.46,176.41,50.18991817]
[1739819241743,50.12691817,176.47,176.41,50.18991817]
[1739819241953,50.12691817,176.46,176.41,0.063]
[1739819242135,50.12691817,176.44,176.41,0.063]
[1739819243051,50.12691817,176.42,176.41,0.063]
[1739819243652,63.5387667,176.42,176.41,0.063]
[1739819244042,50.12691817,176.42,176.41,0.063]
[1739819244267,20.0,176.43,176.41,0.063]
[1739819244453,20.0,176.42,176.41,0.063]
[1739819244635,51.94941817,176.45,176.41,0.063]
[1739819245461,1.8225,176.45,176.41,0.063]
[1739819245650,8.57247526,176.5,176.44,50.12691817]
[1739819245968,8.57247526,176.5,176.49,50.12691817]
[1739819247672,0.03,176.52,176.47,50.12691817]
[1739819247883,50.12691817,176.49,176.44,5.6676]
[1739819248171,0.03,176.52,176.42,55.79511817]
[1739819248172,50.12691817,176.48,176.42,55.79511817]
[1739819248348,50.12691817,176.46,176.41,5.7315]
[1739819248749,5.695,176.52,176.41,5.7315]
[1739819248750,50.12691817,176.44,176.41,0.063]
[1739819248974,50.12691817,176.42,176.41,0.063]
[1739819250175,20.0,176.43,176.41,0.063]
[1739819250353,63.5387667,176.46,176.41,0.063]
[1739819250555,50.12691817,176.46,176.41,0.063]
[1739819250779,50.12691817,176.47,176.41,50.18991817]
[1739819251081,20.0,176.45,176.43,50.12691817]
[1739819251377,20.0,176.45,176.42,50.12691817]
[1739819251559,20.0,176.46,176.43,50.12691817]
[1739819252153,20.0,176.45,176.43,50.12691817]
[1739819252354,20.0,176.45,176.41,50.18991817]
[1739819252580,20.0,176.45,176.41,0.063]
[1739819252956,70.12691817,176.45,176.41,0.063]
[1739819253155,50.12691817,176.44,176.41,0.063]
[1739819253554,50.12691817,176.42,176.41,0.063]
[1739819254785,50.12691817,176.42,176.36,55.79691817]
[1739819255094,50.12691817,176.43,176.37,50.12691817]
[1739819255477,50.12691817,176.43,176.38,50.12691817]
[1739819255784,50.12691817,176.48,176.42,50.12691817]
[1739819255976,20.0,176.45,176.41,55.79551817]
[1739819256360,20.0,176.45,176.43,50.12691817]
[1739819256889,20.0,176.45,176.44,50.12691817]
[1739819257058,20.0,176.47,176.44,50.12691817]
[1739819258075,20.0,176.45,176.4,50.12691817]
[1739819258673,70.12691817,176.47,176.41,50.12691817]
[1739819258888,20.0,176.45,176.42,50.12691817]
[1739819259086,20.0,176.45,176.43,50.12691817]
[1739819259465,20.0,176.46,176.43,50.12691817]
[1739819260186,13.44184853,176.5,176.45,50.12691817]
[1739819260187,0.03,176.5,176.45,50.12691817]
[1739819260484,0.03,176.5,176.46,50.12691817]
[1739819260685,20.0,176.49,176.46,50.12691817]
[1739819260990,0.03,176.5,176.48,50.12691817]
[1739819261196,0.03,176.5,176.49,50.12691817]
[1739819261485,0.03,176.5,176.49,100.25383634]
[1739819261870,0.03,176.52,176.49,105.91983634]
[1739819262069,0.03,176.52,176.49,55.79291817]
[1739819262271,0.03,176.52,176.51,50.12691817]
[1739819262473,0.03,176.52,176.49,55.79291817]
[1739819262677,0.03,176.52,176.5,50.12691817]
[1739819263081,0.03,176.52,176.49,50.12691817]
[1739819263285,0.03,176.52,176.47,50.12691817]
[1739819264695,50.12691817,176.49,176.43,50.12691817]
[1739819264879,50.12691817,176.47,176.41,55.79551817]
[1739819265202,50.12691817,176.46,176.4,55.79571817]
[1739819265577,50.12691817,176.44,176.38,50.12691817]
[1739819265890,13.41184853,176.46,176.35,50.12691817]
[1739819266085,0.03,176.52,176.45,50.12691817]
[1739819266283,0.03,176.52,176.51,50.12691817]
[1739819266995,0.03,176.52,176.49,50.12691817]
[1739819267199,0.03,176.52,176.51,50.12691817]
[1739819268677,0.03,176.52,176.51,55.79231817]
[1739819271980,1.41812003,176.6,176.51,55.79231817]
[1739819272181,21.41812003,176.6,176.58,50.12691817]
[1739819272379,1.41812003,176.6,176.59,50.12691817]
[1739819273403,2.003e-05,176.6,176.59,50.12691817]
[1739819273781,0.03,176.63,176.59,50.12691817]
[1739819273981,0.03,176.63,176.62,50.12691817]
[1739819274181,2.003e-05,176.65,176.62,50.12691817]
[1739819274400,2.003e-05,176.65,176.64,50.12691817]
[1739819275401,8.60247526,176.68,176.64,50.12691817]
[1739819275607,0.03,176.68,176.65,50.12691817]
[1739819275995,0.03,176.68,176.65,55.78781817]
[1739819277112,0.03,176.68,176.65,105.91473634]
[1739819278490,0.03,176.68,176.67,100.25383634]
[1739819279085,0.03,176.68,176.67,50.12691817]
[1739819280309,0.03,176.68,176.67,55.78711817]
[1739819281620,0.03,176.68,176.67,105.91403634]
[1739819283818,0.0001,176.7,176.67,105.91403634]
[1739819284120,0.15,176.73,176.7,13.41184853]
[1739819284318,0.15,176.73,176.72,50.12691817]
[1739819285916,0.03,176.83,176.76,20.0]
[1739819286134,0.03,176.83,176.82,50.12691817]
[1739819286902,0.03,176.83,176.82,55.78231817]
[1739819288014,0.0001,176.83,176.82,55.78231817]
[1739819288506,8.57247526,176.9,176.83,7.1566]
[1739819288707,8.57247526,176.9,176.86,13.41184853]
[1739819288925,8.57247526,176.9,176.85,101.25383634]
[1739819288926,8.57247526,176.9,176.89,50.12691817]
[1739819289130,8.57247526,176.9,176.83,7.1566]
[1739819289321,8.57247526,176.9,176.88,50.12691817]
[1739819289817,8.57247526,176.9,176.89,50.12691817]
[1739819290021,20.0,176.87,176.71,34.9538]
[1739819290343,13.41184853,176.86,176.8,50.12691817]
[1739819290713,50.12691817,176.84,176.78,5.6566]
[1739819290927,50.12691817,176.81,176.74,50.12691817]
[1739819291128,50.12691817,176.82,176.76,50.12691817]
[1739819291334,13.41184853,176.86,176.77,50.12691817]
[1739819291335,50.12691817,176.84,176.77,50.12691817]
[1739819291831,63.5387667,176.86,176.79,50.12691817]
[1739819292032,63.5387667,176.86,176.72,19.8052]
[1739819292033,50.12691817,176.86,176.8,50.12691817]
[1739819292335,0.03,176.91,176.82,50.12691817]
[1739819292524,50.12691817,176.89,176.83,50.12691817]
[1739819293216,0.03,176.91,176.84,50.12691817]
[1739819293528,50.15691817,176.91,176.85,50.12691817]
[1739819293936,50.12691817,176.9,176.84,50.12691817]
[1739819294132,50.12691817,176.88,176.82,50.12691817]
[1739819294319,50.12691817,176.88,176.81,50.12691817]
[1739819294516,50.12691817,176.86,176.8,55.78291817]
[1739819294717,50.12691817,176.88,176.82,50.12691817]
[1739819294917,50.12691817,176.87,176.81,50.12691817]
[1739819295912,0.03,176.91,176.83,50.12691817]
[1739819296133,0.03,176.91,176.85,50.12691817]
[1739819296134,50.15691817,176.91,176.85,50.12691817]
[1739819296438,50.12691817,176.89,176.83,50.12691817]
[1739819296635,50.12691817,176.86,176.8,50.12691817]
[1739819296847,50.12691817,176.88,176.82,50.12691817]
[1739819297013,50.12691817,176.9,176.84,50.12691817]
[1739819297818,50.12691817,176.87,176.78,5.6567]
[1739819298043,0.03,176.91,176.86,50.12691817]
[1739819298209,0.03,176.91,176.85,50.12691817]
[1739819298210,0.03,176.91,176.9,50.12691817]
[1739819298413,0.03,176.91,176.89,50.12691817]
[1739819298643,0.03,176.91,176.87,50.12691817]
[1739819298943,0.03,176.91,176.79,0.84805838]
[1739819298944,50.12691817,176.89,176.83,50.12691817]
[1739819299113,1.8056,176.9,176.83,50.12691817]
[1739819299315,50.12691817,176.88,176.82,50.12691817]
[1739819299741,22.35864853,176.9,176.81,50.12691817]
[1739819299742,50.12691817,176.87,176.81,50.12691817]
[1739819299941,22.35864853,176.9,176.82,50.12691817]
[1739819300119,50.12691817,176.89,176.83,50.12691817]
[1739819300315,50.12691817,176.88,176.78,89.72]
[1739819300559,50.12691817,176.88,176.82,50.12691817]
[1739819300719,50.12691817,176.88,176.79,5.6564]
[1739819300919,50.12691817,176.88,176.82,50.12691817]
[1739819301239,13.41184853,176.89,176.84,50.12691817]
[1739819301414,50.12691817,176.88,176.82,50.12691817]
[1739819301618,50.12691817,176.89,176.83,50.12691817]
[1739819302242,50.12691817,176.88,176.82,50.12691817]
[1739819302449,50.12691817,176.88,176.82,55.78211817]
[1739819302954,50.12691817,176.88,176.82,50.12691817]
[1739819303125,50.12691817,176.87,176.82,5.6554]
[1739819303447,59.07371817,176.9,176.83,50.12691817]
[1739819303620,59.07371817,176.9,176.84,50.12691817]
[1739819303949,1.8056,176.9,176.86,50.12691817]
[1739819304330,51.93251817,176.9,176.84,50.12691817]
[1739819304529,50.12691817,176.85,176.8,5.6561]
[1739819304745,50.12691817,176.86,176.8,55.78301817]
[1739819304921,50.12691817,176.88,176.82,50.12691817]
[1739819305245,1.8056,176.9,176.85,50.12691817]
[1739819305422,1.8056,176.9,176.86,50.12691817]
[1739819305744,1.8056,176.9,176.88,50.12691817]
[1739819305951,1.8056,176.9,176.87,50.12691817]
[1739819306119,1.8056,176.9,176.86,50.12691817]
[1739819306650,1.8056,176.9,176.87,5.6538]
[1739819306826,1.8056,176.9,176.87,55.78071817]
[1739819307029,1.8056,176.9,176.87,5.6538]
[1739819307546,0.03,176.91,176.89,50.12691817]
[1739819307846,0.03,176.91,176.87,19.7884]
[1739819307847,9.154,177.0,176.9,50.12691817]
[1739819308022,9.154,177.0,176.96,50.12691817]
[1739819308225,9.154,177.0,176.95,50.12691817]
[1739819308436,9.154,177.0,176.96,5.6509]
[1739819308644,1.7586,177.0,176.96,55.77781817]
[1739819308927,1.41508462,176.99,176.96,5.6509]
[1739819309258,1.41508462,176.99,176.96,55.77781817]
[1739819309559,1.41508462,176.99,176.98,50.12691817]
[1739819309762,1.41508462,176.99,176.97,50.12691817]
[1739819310339,50.12691817,177.03,176.97,50.12691817]
[1739819310655,1.44508462,177.04,176.99,55.77691817]
[1739819311659,0.03,177.04,177.01,50.12691817]
[1739819312034,0.03,177.04,177.0,50.12691817]
[1739819312234,0.03,177.04,177.02,50.12691817]
[1739819312650,0.03,177.04,177.03,5.6487]
[1739819313374,0.03,177.04,177.03,55.77561817]
[1739819315943,0.03,177.04,177.01,50.12691817]
[1739819316170,0.03,177.04,176.95,7.0475]
[1739819316171,50.12691817,177.03,176.98,50.12691817]
[1739819316464,0.03,177.04,176.99,50.12691817]
[1739819316662,50.15691817,177.04,176.99,5.65]
[1739819316959,50.15691817,177.04,176.98,50.12691817]
[1739819317160,50.12691817,177.03,176.98,5.6503]
[1739819317463,50.12691817,177.02,176.95,50.12691817]
[1739819317631,0.03,177.04,176.96,5.6509]
[1739819317836,50.12691817,177.0,176.93,50.12691817]
[1739819318053,0.03,177.04,176.99,50.12691817]
[1739819318264,0.03,177.04,177.0,50.12691817]
[1739819318437,0.03,177.04,176.99,50.12691817]
[1739819318642,50.12691817,177.03,176.97,50.12691817]
[1739819319166,50.12691817,176.98,176.92,55.77911817]
[1739819319345,50.12691817,176.97,176.91,5.6525]
[1739819319533,50.12691817,176.96,176.91,5.6525]
[1739819319739,50.12691817,176.97,176.91,55.77941817]
[1739819320038,50.12691817,176.98,176.92,50.12691817]
[1739819320261,50.12691817,176.99,176.93,50.12691817]
[1739819320564,50.12691817,177.0,176.94,50.12691817]
[1739819320735,1.4146255,176.97,176.93,50.12691817]
[1739819320932,1.4146255,176.97,176.92,50.12691817]
[1739819321959,1.4146255,176.97,176.94,50.12691817]
[1739819322165,1.4146255,176.97,176.96,50.12691817]
[1739819322464,1.4146255,176.98,176.96,50.12691817]
[1739819322667,1.4146255,176.98,176.97,50.12691817]
[1739819322851,1.4146255,176.98,176.97,55.77751817]
[1739819323439,1.4146255,177.03,176.97,69.90411817]
[1739819323754,1.4146255,177.03,177.02,50.12691817]
[1739819324360,1.4146255,177.03,177.0,50.12691817]
[1739819324752,1.4146255,177.03,176.99,50.12691817]
[1739819324955,1.4146255,177.03,176.98,50.12691817]
[1739819325268,50.12691817,177.02,176.96,50.12691817]
[1739819325447,50.12691817,177.02,176.95,50.12691817]
[1739819325643,50.12691817,177.02,176.96,50.12691817]
[1739819326571,1.4146255,177.01,176.94,50.12691817]
[1739819326751,1.4146255,177.01,177.0,50.12691817]
[1739819326944,1.4146255,177.01,177.0,55.77661817]
[1739819327765,0.03,177.04,177.0,55.77661817]
[1739819328077,0.03,177.04,177.01,50.12691817]
[1739819328275,0.03,177.04,177.02,50.12691817]
[1739819328968,0.03,177.04,177.01,55.77621817]
[1739819329269,0.03,177.04,177.02,50.12691817]
[1739819330560,0.03,177.04,177.0,55.77631817]
[1739819331491,0.03,177.04,177.01,50.12691817]
[1739819331859,0.03,177.04,176.99,50.12691817]
[1739819332074,50.12691817,177.0,176.96,5.6509]
[1739819332260,50.12691817,177.0,176.94,50.12691817]
[1739819332464,50.12691817,177.0,176.95,5.6512]
[1739819332685,50.12691817,177.01,176.95,55.77811817]
[1739819332980,50.12691817,177.02,176.97,5.6506]
[1739819333288,50.12691817,177.01,176.95,50.12691817]
[1739819333458,50.12691817,177.0,176.94,50.12691817]
[1739819333659,50.12691817,176.99,176.93,55.77881817]
[1739819333874,51.98521817,177.02,176.95,50.12691817]
[1739819334187,51.98521817,177.02,176.92,55.77911817]
[1739819334188,50.12691817,176.98,176.92,55.77911817]
[1739819335063,50.12691817,176.99,176.93,50.12691817]
[1739819335886,50.12691817,176.96,176.91,0.063]
[1739819336090,50.12691817,176.96,176.91,5.7154]
[1739819336701,30.40739215,176.97,176.91,5.7154]
[1739819336866,30.40739215,176.97,176.91,36.12279215]
[1739819337066,43.81924068,176.99,176.93,30.40739215]
[1739819337387,37.36889215,177.01,176.95,30.40739215]
[1739819337592,32.26569215,177.02,176.95,30.40739215]
[1739819337772,1.8583,177.02,176.96,30.40739215]
[1739819337966,1.8583,177.02,176.98,30.40739215]
[1739819338162,1.4147371,177.01,176.94,30.40739215]
[1739819338389,1.4147371,177.01,177.0,30.40739215]
[1739819339192,1.4147371,177.01,177.0,36.05709215]
[1739819340173,0.03,177.04,177.0,36.05709215]
[1739819340376,0.03,177.04,177.03,30.40739215]
[1739819340601,0.03,177.04,177.02,49.34558181]
[1739819341286,0.03,177.04,177.03,54.99428181]
[1739819341691,0.03,177.04,177.03,5.6487]
[1739819342271,0.03,177.04,177.03,54.99428181]
[1739819343783,0.03,177.04,177.01,5.6491]
[1739819344100,0.03,177.04,177.01,54.99468181]
[1739819344300,0.03,177.04,177.02,49.34558181]
[1739819344493,0.03,177.04,177.03,49.34558181]
[1739819345284,0.03,177.04,177.02,54.99448181]
[1739819345821,0.03,177.04,177.03,49.34558181]
[1739819347290,0.03,177.04,177.03,104.33986362]
[1739819347929,0.03,177.04,177.03,54.99428181]
[1739819348606,0.03,177.04,177.03,49.34558181]
[1739819348806,0.03,177.04,177.02,54.99438181]
[1739819349126,0.03,177.04,177.01,49.34558181]
[1739819349306,0.03,177.04,177.01,54.99478181]
[1739819349507,0.03,177.04,177.03,49.34558181]
[1739819349902,0.03,177.04,176.97,21.6345]
[1739819350110,0.03,177.04,177.0,49.34558181]
[1739819350420,49.34558181,177.02,176.96,49.34558181]
[1739819350796,49.34558181,177.03,176.97,49.34558181]
[1739819351414,49.34558181,177.01,176.95,49.34558181]
[1739819351903,50.75986977,177.02,176.96,49.34558181]
[1739819352099,55.28456971,177.02,176.96,53.87028175]
[1739819352319,53.87028175,177.01,176.95,53.87028175]
[1739819352499,53.87028175,177.01,176.93,59.52218175]
[1739819352500,53.87028175,176.99,176.93,59.52218175]
[1739819352812,53.87028175,176.97,176.91,59.58578175]
[1739819353497,53.87028175,176.96,176.91,0.063]
[1739819353818,53.87028175,176.94,176.91,0.063]
[1739819354021,53.87028175,176.92,176.91,0.063]
[1739819354197,53.87028175,176.93,176.91,0.063]
[1739819354398,53.87028175,176.94,176.91,0.063]
[1739819354805,1.41428796,176.93,176.91,0.063]
[1739819355006,55.28456971,176.93,176.91,0.063]
[1739819355194,67.28213028,176.92,176.91,0.063]
[1739819356026,13.41184853,176.92,176.91,0.063]
[1739819356407,68.69641824,176.92,176.91,0.063]
[1739819356709,55.28456971,176.92,176.91,0.063]
[1739819356912,74.34861824,176.92,176.91,0.063]
[1739819357513,68.69641824,176.92,176.91,0.063]
[1739819357911,20.0,176.89,176.82,53.87028175]
[1739819358121,53.87028175,176.87,176.81,59.52568175]
[1739819358304,13.41184853,176.88,176.83,53.87028175]
[1739819358509,7.06648796,176.92,176.85,53.87028175]
[1739819358510,73.87028175,176.91,176.85,53.87028175]
[1739819358708,67.28213028,176.9,176.84,53.87028175]
[1739819358906,53.87028175,176.89,176.83,53.87028175]
[1739819359127,13.41184853,176.9,176.85,53.87028175]
[1739819359422,14.82613649,176.9,176.86,53.87028175]
[1739819359729,14.82613649,176.9,176.85,59.52468175]
[1739819359928,13.41184853,176.88,176.83,53.87028175]
[1739819360136,53.87028175,176.88,176.82,53.87028175]
[1739819360711,33.2025538,176.88,176.82,33.2025538]
[1739819360943,46.61440233,176.89,176.83,33.2025538]
[1739819361240,20.0,176.91,176.86,33.2025538]
[1739819361435,13.41184853,176.9,176.86,33.18754268]
[1739819361625,20.0,176.91,176.87,33.18754268]
[1739819362424,20.0,176.91,176.83,19.7929]
[1739819362425,33.18754268,176.97,176.9,33.18754268]
[1739819362626,33.18754268,176.97,176.91,33.18754268]
[1739819362823,33.18754268,176.92,176.86,33.18754268]
[1739819363031,33.18754268,176.91,176.85,33.18754268]
[1739819363337,33.18754268,176.9,176.85,5.6542]
[1739819363523,33.19523262,176.9,176.8,14.1399]
[1739819363838,13.41184853,176.9,176.85,33.19523262]
[1739819364415,46.60708115,176.89,176.83,33.19523262]
[1739819365223,1.4157819,176.88,176.83,33.19523262]
[1739819365633,1.4157819,176.88,176.85,33.19523262]
[1739819366041,1.4157819,176.88,176.84,33.19523262]
[1739819366534,13.41184853,176.89,176.84,33.19523262]
[1739819367042,33.19523262,176.89,176.83,33.19523262]
[1739819367216,33.19523262,176.89,176.85,0.063]
[1739819367412,13.41184853,176.89,176.85,0.063]
[1739819368513,33.19523262,176.91,176.85,33.25823262]
[1739819368716,33.22523262,176.92,176.86,33.19523262]
[1739819368929,13.41184853,176.91,176.86,33.19523262]
[1739819369750,33.22523262,176.92,176.86,38.84933262]
[1739819370045,33.22523262,176.92,176.86,33.19523262]
[1739819370246,33.19523262,176.91,176.85,38.91263262]
[1739819370547,33.19523262,176.91,176.85,33.25823262]
[1739819370722,33.19523262,176.91,176.85,38.91263262]
[1739819371115,46.60708115,176.9,176.85,0.063]
[1739819372147,46.60708115,176.91,176.85,33.25823262]
[1739819373030,13.41184853,176.89,176.85,0.063]
[1739819373554,0.03,176.92,176.87,33.19523262]
[1739819373849,33.19523262,176.91,176.85,33.25823262]
[1739819374358,13.41184853,176.9,176.85,33.25823262]
[1739819374643,13.41184853,176.9,176.85,0.063]
[1739819374644,46.60708115,176.9,176.85,0.063]
[1739819375842,33.19523262,176.89,176.85,0.063]
[1739819376624,13.41184853,176.89,176.85,0.063]
[1739819377950,0.03,176.92,176.85,0.063]
[1739819378155,33.19523262,176.91,176.85,33.25823262]
[1739819378326,46.60708115,176.9,176.85,0.063]
[1739819380746,20.74587573,176.9,176.85,0.063]
[1739819381451,20.74587573,176.88,176.85,0.063]
[1739819382160,20.74587573,176.89,176.85,0.063]
[1739819382455,34.15772426,176.9,176.85,0.063]
[1739819382753,0.03,176.91,176.89,20.74587573]
[1739819382939,0.03,176.91,176.9,21.59360834]
[1739819383139,0.03,176.92,176.9,20.74587573]
[1739819383452,0.03,176.92,176.91,20.74587573]
[1739819384759,0.03,176.92,176.91,33.1525936]
[1739819385861,0.03,176.92,176.91,38.8050936]
[1739819390468,0.03,176.92,176.9,33.1525936]
[1739819390672,0.03,176.92,176.89,33.1525936]
[1739819391045,0.03,176.92,176.89,38.8055936]
[1739819391252,1.41484694,176.96,176.91,33.1525936]
[1739819391468,1.41484694,176.94,176.93,33.1525936]
[1739819391670,1.41484694,176.94,176.91,33.1525936]
[1739819391852,1.41484694,176.94,176.9,33.1525936]
[1739819392563,34.56744054,176.94,176.86,5.6541]
[1739819392867,33.1525936,176.94,176.88,33.1525936]
[1739819393167,33.1525936,176.94,176.88,38.8058936]
[1739819393883,33.1525936,176.94,176.88,5.6533]
[1739819394089,33.1525936,176.91,176.85,33.2155936]
[1739819394258,33.1525936,176.91,176.85,0.063]
[1739819394587,33.1525936,176.92,176.86,33.1525936]
[1739819395280,1.41484694,176.91,176.86,38.8065936]
[1739819395676,1.41484694,176.91,176.87,33.1525936]
[1739819395852,1.41484694,176.91,176.88,33.1525936]
[1739819396566,53.1525936,176.89,176.85,0.063]
[1739819396770,20.0,176.83,176.74,33.1525936]
[1739819396955,33.1525936,176.79,176.74,5.658]
[1739819397482,33.1525936,176.8,176.74,38.8105936]
[1739819397687,33.1525936,176.79,176.74,5.658]
[1739819397899,33.1525936,176.77,176.73,5.7212]
[1739819398103,33.1525936,176.74,176.73,0.063]
[1739819398274,46.56444213,176.74,176.73,0.063]
[1739819398912,47.97928907,176.74,176.73,0.063]
[1739819399416,19.07014853,176.73,176.67,0.063]
[1739819399709,33.1525936,176.68,176.67,0.063]
[1739819400009,33.1525936,176.69,176.67,0.063]
[1739819400169,46.56444213,176.68,176.67,0.063]
[1739819402080,47.97928907,176.68,176.67,0.063]
[1739819402890,81.13188267,176.68,176.67,0.063]
[1739819403086,86.79178267,176.68,176.66,0.063]
[1739819403287,15.32754853,176.63,176.53,5.6645]
[1739819403486,33.1525936,176.57,176.5,5.6657]
[1739819403710,33.1525936,176.57,176.5,38.8182936]
[1739819404097,33.1525936,176.56,176.5,38.8182936]
[1739819404288,13.41184853,176.59,176.49,5.7289]
[1739819404289,33.1525936,176.54,176.49,5.7289]
[1739819404488,33.1525936,176.53,176.49,5.7289]
[1739819404685,1.9157,176.63,176.51,33.1525936]
[1739819404993,33.1525936,176.57,176.51,33.1525936]
[1739819405197,33.1525936,176.6,176.53,33.1525936]
[1739819405400,33.1525936,176.6,176.55,5.6641]
[1739819406704,13.41184853,176.61,176.55,38.8166936]
[1739819407002,33.1525936,176.62,176.56,33.1525936]
[1739819407403,46.1084936,176.67,176.59,33.1525936]
[1739819407404,33.1525936,176.65,176.59,33.1525936]
[1739819407616,33.1525936,176.65,176.57,19.822]
[1739819407617,33.1525936,176.62,176.57,5.6634]
[1739819407811,33.1525936,176.61,176.57,5.6634]
[1739819408412,33.1525936,176.58,176.52,33.1525936]
[1739819408613,33.1525936,176.56,176.5,47.3162936]
[1739819408813,33.1525936,176.56,176.51,5.6654]
[1739819409027,33.1525936,176.54,176.5,5.6657]
[1739819409329,33.1525936,176.53,176.49,0.063]
[1739819409614,13.41184853,176.57,176.49,0.063]
[1739819409615,33.1525936,176.52,176.49,0.063]
[1739819410191,53.1525936,176.54,176.49,0.063]
[1739819410519,20.0,176.54,176.49,33.2155936]
[1739819411209,33.1525936,176.52,176.49,0.063]
[1739819411405,33.1525936,176.51,176.45,33.2155936]
[1739819411714,46.56444213,176.53,176.47,33.1525936]
[1739819412094,46.56444213,176.53,176.46,33.1525936]
[1739819412313,33.1525936,176.52,176.46,33.1525936]
[1739819413320,13.41184853,176.53,176.48,33.1525936]
[1739819413522,20.0,176.54,176.5,33.1525936]
[1739819414296,13.41184853,176.55,176.5,33.1525936]
[1739819414614,46.56444213,176.55,176.49,38.8185936]
[1739819414923,33.1525936,176.52,176.49,5.666]
[1739819415099,33.1525936,176.54,176.49,5.666]
[1739819415298,46.56444213,176.55,176.49,38.8185936]
[1739819415923,0.12,176.56,176.51,33.1525936]
[1739819416131,0.12,176.56,176.55,33.1525936]
[1739819416423,0.12,176.56,176.52,33.1525936]
[1739819416731,33.1525936,176.58,176.52,33.0325936]